bitfinex-derivatives/quotes_ETHF0:USTF0_20250505
["timestamp","ask_amount","ask_price","bid_price","bid_amount"]
[1746470067478,1.09567,1825.7,1825.6,1.09569]
[1746470067675,1.09552,1825.9,1825.8,1.09557]
[1746470067875,1.09564,1825.7,1825.6,1.09564]
[1746470068183,1.09567,1825.7,1825.6,1.09566]
[1746470068576,1.0957,1825.6,1825.5,1.09569]
[1746470068971,1.09578,1825.5,1825.4,1.09577]
[1746470069172,3.2078,1825.6,1825.2,5.11491]
[1746470069380,3.2078,1825.6,1825.1,1.6846]
[1746470069578,3.2078,1825.6,1824.7,2.74051]
[1746470069579,3.2078,1825.2,1824.7,3.2078]
[1746470069779,11.89188,1825.5,1824.7,3.2078]
[1746470069977,1.09608,1825.0,1824.9,1.09608]
[1746470070572,5.94795,1825.0,1824.6,1.6936]
[1746470070781,1.09621,1824.8,1824.7,1.0962]
[1746470073683,4.36418,1824.9,1824.4,4.018]
[1746470073982,1.0963,1824.7,1824.6,1.09628]
[1746470074487,1.09633,1824.6,1824.5,1.09631]
[1746470074980,1.09639,1824.5,1824.4,1.09638]
[1746470075280,1.09639,1824.5,1824.4,1.49615732]
[1746470075478,1.09639,1824.5,1824.4,1.49613194]
[1746470075679,1.09632,1824.6,1824.5,1.09631]
[1746470075984,2.71907,1824.7,1824.6,1.09629]
[1746470076287,1.09634,1824.6,1824.5,1.09632]
[1746470076582,1.09634,1824.6,1824.5,1.49609429]
[1746470077188,4.82834,1824.6,1824.5,1.49609429]
[1746470077483,4.82834,1824.6,1824.5,1.4965399]
[1746470079381,4.82829,1824.6,1824.5,1.49691286]
[1746470079890,4.82829,1824.6,1824.5,0.40059286]
[1746470080086,1.09629,1824.6,1824.5,1.49694286]
[1746470080587,3.2078,1824.8,1824.7,1.09623]
[1746470080787,4.30397,1824.8,1824.7,1.49693347]
[1746470080987,4.30397,1824.8,1824.7,0.40070347]
[1746470081182,1.09629,1824.6,1824.5,4.30413]
[1746470081378,1.09629,1824.6,1824.5,1.49717845]
[1746470081886,3.2078,1824.8,1824.5,3.60864845]
[1746470082089,4.30397,1824.8,1824.7,1.09623]
[1746470082384,4.30397,1824.8,1824.7,1.49707845]
[1746470082584,4.30397,1824.8,1824.7,0.40084845]
[1746470082883,4.30397,1824.8,1824.7,1.49706494]
[1746470083084,4.30397,1824.8,1824.7,1.99673494]
[1746470083292,1.09635,1824.5,1824.4,1.91226]
[1746470083485,1.09635,1824.5,1824.4,2.31318818]
[1746470084088,1.09635,1824.5,1824.4,0.40092818]
[1746470084292,1.09659,1824.2,1824.1,1.09659]
[1746470084591,1.09659,1824.2,1824.1,0.40119999]
[1746470084793,1.09659,1824.2,1824.1,2.09871061]
[1746470085188,4.82859,1824.2,1824.1,2.09871061]
[1746470085395,1.09659,1824.1,1824.0,7.2774142]
[1746470085691,1.09659,1824.1,1824.0,7.6782591]
[1746470085692,2.81879,1824.1,1824.0,7.6782591]
[1746470086088,6.55079,1824.1,1824.0,8.9750142]
[1746470086485,5.4542,1824.1,1824.0,10.47232396]
[1746470086689,3.732,1824.1,1824.0,3.19490976]
[1746470087195,1.90287,1824.2,1824.1,1.09659]
[1746470087395,0.8063,1824.2,1824.1,4.70504976]
[1746470087893,3.2078,1824.7,1824.1,3.60845976]
[1746470088089,8.8505,1824.7,1824.6,1.09629]
[1746470088296,4.8135,1824.7,1824.6,1.09629]
[1746470088696,0.01212461,1824.8,1824.7,1.09623]
[1746470091392,0.01212461,1824.8,1824.7,4.70461889]
[1746470091700,0.01212461,1824.8,1824.7,1.49681889]
[1746470091900,1.10829461,1824.8,1824.7,1.49676154]
[1746470092093,0.01212461,1824.8,1824.7,1.49676154]
[1746470092493,1.10829461,1824.8,1824.7,1.49676154]
[1746470092695,1.10829461,1824.8,1824.5,2.75541]
[1746470092696,1.65092461,1824.8,1824.5,2.75541]
[1746470092900,1.09623,1824.7,1824.6,1.09626]
[1746470093396,1.09623,1824.7,1824.5,1.6591]
[1746470093397,1.09629,1824.6,1824.5,2.75541]
[1746470094202,4.82829,1824.6,1824.5,2.75541]
[1746470094594,4.82829,1824.6,1824.5,1.6591]
[1746470094793,1.09635,1824.5,1824.4,1.09639]
[1746470094993,2.73515,1824.5,1824.4,1.09639]
[1746470095299,6.46715,1824.5,1824.4,1.09639]
[1746470095497,1.09641,1824.4,1824.3,4.30423]
[1746470095703,2.68791,1824.4,1824.3,4.30423]
[1746470096202,6.41991,1824.4,1824.3,4.70495241]
[1746470096499,1.09647,1824.3,1824.2,1.5687]
[1746470096701,1.09647,1824.3,1824.2,1.96958262]
[1746470096902,1.09647,1824.3,1824.2,3.06605262]
[1746470097101,6.41997,1824.3,1824.2,3.06619516]
[1746470097310,6.41997,1824.3,1824.2,2.66517]
[1746470097695,6.41997,1824.3,1824.2,3.06620757]
[1746470097898,3.732,1824.3,1824.2,3.06620757]
[1746470098201,3.732,1824.3,1824.2,6.27400757]
[1746470098703,4.82847,1824.3,1824.2,6.27400757]
[1746470099202,4.82847,1824.3,1824.2,6.27418345]
[1746470099805,3.732,1824.3,1824.2,6.27418345]
[1746470100303,3.2078,1824.6,1824.5,1.09635]
[1746470100504,3.2078,1824.6,1824.5,1.49756345]
[1746470100505,4.30409,1824.6,1824.5,1.49756345]
[1746470100805,5.97399,1824.6,1824.5,1.49756345]
[1746470101207,9.70599,1824.6,1824.5,1.49756345]
[1746470102107,9.70599,1824.6,1824.5,1.49798859]
[1746470102605,8.6097,1824.6,1824.5,1.49798859]
[1746470102801,6.9398,1824.6,1824.5,1.49798859]
[1746470103208,4.30409,1824.6,1824.5,1.49798859]
[1746470103410,5.91029,1824.6,1824.5,1.49798859]
[1746470103602,4.814,1824.6,1824.5,3.20358859]
[1746470103803,5.91029,1824.6,1824.5,3.20358859]
[1746470104013,5.91029,1824.6,1824.5,3.20385217]
[1746470104214,4.814,1824.6,1824.5,3.20385217]
[1746470104910,2.70249,1824.6,1824.5,3.20385217]
[1746470105614,1.89488,1824.7,1824.6,1.09629]
[1746470106112,7.22068,1824.7,1824.6,1.09629]
[1746470106313,7.22068,1824.7,1824.6,1.49823081]
[1746470106611,5.62688,1824.7,1824.6,1.49823081]
[1746470107112,0.7986,1824.7,1824.6,1.49823081]
[1746470107407,1.09623,1824.7,1824.6,1.49816463]
[1746470107613,1.09623,1824.7,1824.6,0.40192463]
[1746470107910,1.09623,1824.7,1824.6,1.09629]
[1746470107911,2.67163,1824.7,1824.6,1.09629]
[1746470108308,6.40363,1824.7,1824.6,1.09629]
[1746470108510,1.09629,1824.6,1824.5,2.80192]
[1746470108712,2.67169,1824.6,1824.5,3.20383211]
[1746470109313,2.67169,1824.6,1824.5,3.20374769]
[1746470110113,6.40369,1824.6,1824.5,3.20374769]
[1746470110411,3.732,1824.6,1824.5,3.20374769]
[1746470111013,3.732,1824.6,1824.5,3.20364803]
[1746470111317,1.10834461,1824.8,1824.7,1.09623]
[1746470111506,1.09626,1824.7,1824.6,4.30404]
[1746470111708,2.72772461,1824.8,1824.7,1.09623]
[1746470111909,2.72772461,1824.8,1824.7,2.12316836]
[1746470112212,2.72772461,1824.8,1824.7,1.7213]
[1746470112424,2.72772461,1824.8,1824.7,2.81753]
[1746470112624,2.72772461,1824.8,1824.7,1.7213]
[1746470113024,2.72772461,1824.8,1824.7,2.12325939]
[1746470113225,2.72772461,1824.8,1824.7,3.21948939]
[1746470113226,6.45972461,1824.8,1824.7,3.21948939]
[1746470113828,6.45972461,1824.8,1824.7,2.12325939]
[1746470114028,6.45972461,1824.8,1824.7,3.21948939]
[1746470114328,6.45972461,1824.8,1824.7,2.12325939]
[1746470114724,6.45972461,1824.8,1824.7,3.21946832]
[1746470114926,6.45972461,1824.8,1824.7,2.12323832]
[1746470115227,6.45972461,1824.8,1824.7,2.12331966]
[1746470116432,6.45972461,1824.8,1824.7,2.12355243]
[1746470118332,6.45972461,1824.8,1824.7,2.12374744]
[1746470120032,6.45972461,1824.8,1824.7,2.12376756]
[1746470120428,6.45972461,1824.8,1824.7,2.12380349]
[1746470121433,6.45972461,1824.8,1824.7,3.22003349]
[1746470121833,6.45972461,1824.8,1824.7,3.22006725]
[1746470122131,3.74412461,1824.8,1824.7,3.22006725]
[1746470122428,7.67312461,1824.8,1824.7,3.22006725]
[1746470122630,3.74412461,1824.8,1824.7,3.22006725]
[1746470122831,3.74412461,1824.8,1824.7,4.02616725]
[1746470123134,0.01212461,1824.8,1824.7,4.02616725]
[1746470123932,0.01212461,1824.8,1824.7,4.02620673]
[1746470125632,0.01212461,1824.8,1824.7,9.02620673]
[1746470126235,0.01212461,1824.8,1824.7,4.02620673]
[1746470128831,0.01212461,1824.8,1824.7,4.02592193]
[1746470129231,0.01212461,1824.8,1824.7,4.02614254]
[1746470130839,4.61e-06,1824.8,1824.7,4.02614254]
[1746470131235,4.61e-06,1824.8,1824.7,7.75814254]
[1746470132333,4.61e-06,1824.8,1824.7,12.75814254]
[1746470132734,4.61e-06,1824.8,1824.7,12.75774584]
[1746470133438,0.153,1825.2,1825.1,1.09599]
[1746470133640,1.24867,1825.7,1825.6,1.09569]
[1746470133940,1.24867,1825.7,1825.6,1.49780584]
[1746470134139,0.153,1825.7,1825.6,1.49780584]
[1746470134439,0.153,1825.7,1825.6,3.14158897]
[1746470134636,0.153,1825.7,1825.6,4.82238897]
[1746470136137,0.153,1825.7,1825.6,4.82206313]
[1746470138840,0.8332,1826.2,1825.7,2.73908]
[1746470139037,0.8332,1826.2,1826.1,1.09539]
[1746470139233,4.041,1826.2,1825.8,4.897]
[1746470139439,0.8332,1826.2,1825.9,1.6892]
[1746470139742,3.51376,1826.2,1826.1,1.09539]
[1746470140045,1.92853,1826.2,1826.1,1.09539]
[1746470140232,0.8332,1826.2,1825.9,1.6892]
[1746470140437,5.66056,1826.2,1826.1,1.09539]
[1746470140640,1.09539,1826.1,1826.0,2.78461]
[1746470140938,1.5852,1826.1,1826.0,2.78461]
[1746470141144,5.3172,1826.1,1826.0,2.78461]
[1746470141341,6.41259,1826.1,1826.0,2.78461]
[1746470141846,5.3172,1826.1,1826.0,2.78461]
[1746470142046,6.41259,1826.1,1826.0,2.78461]
[1746470142244,1.09551,1825.9,1825.8,3.2078]
[1746470142448,1.09551,1825.9,1825.8,2.77157]
[1746470142748,7.73887,1825.9,1825.4,3.2078]
[1746470142955,7.73887,1825.9,1825.5,1.09574]
[1746470142956,1.09573,1825.6,1825.5,1.09574]
[1746470143445,2.76218,1825.7,1825.6,1.09569]
[1746470144050,1.09569,1825.6,1825.5,2.77171]
[1746470144645,6.74464,1825.6,1825.1,8.9271142]
[1746470144946,1.09587,1825.3,1825.2,1.6787]
[1746470145144,1.09586,1825.4,1825.3,1.09587]
[1746470145346,1.09587,1825.3,1825.2,2.7746]
[1746470145744,2.80817,1825.3,1825.2,2.77463]
[1746470146138,6.54017,1825.3,1825.2,1.09593]
[1746470146652,1.09593,1825.2,1825.1,2.77463]
[1746470146947,3.60583,1825.2,1825.1,2.77463]
[1746470147148,7.33783,1825.2,1825.1,1.6787]
[1746470147542,7.33783,1825.2,1825.1,2.77469]
[1746470147844,1.09599,1825.1,1825.0,3.2078]
[1746470148048,2.71319,1825.1,1825.0,2.78045]
[1746470148251,0.7976,1825.2,1825.1,1.09599]
[1746470148548,1.89353,1825.2,1825.1,2.78039]
[1746470149148,5.62553,1825.2,1825.1,2.78039]
[1746470150252,5.78973,1825.4,1825.3,1.09587]
[1746470150454,1.94273,1825.4,1825.3,1.09587]
[1746470150951,3.61013,1825.4,1825.3,1.09587]
[1746470151341,1.09587,1825.3,1825.2,2.73331]
[1746470151648,1.09595,1825.2,1825.1,1.09594]
[1746470151849,2.76335,1825.2,1825.1,1.09594]
[1746470152040,2.76335,1825.2,1825.1,2.73334]
[1746470152245,1.6674,1825.2,1825.1,2.73334]
[1746470153046,2.76333,1825.2,1825.1,2.73334]
[1746470156959,2.76333,1825.2,1825.1,1.6374]
[1746470157251,6.49533,1825.2,1825.1,2.73339]
[1746470157452,6.49533,1825.2,1825.1,1.6374]
[1746470157651,6.49533,1825.2,1825.1,2.73339]
[1746470158155,2.76333,1825.2,1825.1,2.73339]
[1746470161355,1.0956,1825.8,1825.4,1.09581]
[1746470161551,53.98177,1826.0,1825.2,2.73983]
[1746470161552,6.02708,1825.9,1825.5,3.60712825]
[1746470161751,2.75833,1825.8,1825.7,1.09563]
[1746470165353,1.09563,1825.8,1825.7,1.09563]
[1746470165652,1.6256,1825.9,1825.8,1.09557]
[1746470165857,4.94242,1826.1,1826.0,1.09542]
[1746470166054,1.09542,1826.1,1826.0,1.09542]
[1746470166262,4.0205,1826.3,1826.2,1.09533]
[1746470167158,7.7525,1826.3,1826.2,1.09533]
[1746470167460,4.5447,1826.3,1826.2,4.30313]
[1746470167659,1.09533,1826.2,1826.1,4.40767]
[1746470167962,4.5447,1826.3,1826.0,3.2078]
[1746470168162,1.09539,1826.1,1826.0,4.3032]
[1746470168462,2.78034,1826.2,1826.1,1.09539]
[1746470168648,1.685,1826.2,1826.1,1.09539]
[1746470168848,2.78033,1826.2,1826.1,1.09539]
[1746470169059,1.685,1826.2,1826.1,1.09539]
[1746470169355,6.51233,1826.2,1826.1,1.09539]
[1746470170161,1.09539,1826.1,1826.0,4.30321]
[1746470170459,1.09539,1826.1,1826.0,4.30322]
[1746470171158,4.82739,1826.1,1826.0,4.30322]
[1746470172152,3.732,1826.1,1826.0,4.30322]
[1746470172758,3.732,1826.1,1826.0,4.70260487]
[1746470173361,4.82739,1826.1,1826.0,4.70260487]
[1746470173549,4.82739,1826.1,1826.0,4.30322]
[1746470173958,1.09545,1826.0,1825.9,1.09546]
[1746470174159,4.82745,1826.0,1825.9,1.49485324]
[1746470174354,3.732,1826.0,1825.9,1.49485324]
[1746470174757,4.82745,1826.0,1825.9,1.09546]
[1746470174961,4.82745,1826.0,1825.9,1.49494116]
[1746470175259,4.82745,1826.0,1825.9,1.09546]
[1746470175661,3.732,1826.0,1825.9,1.09546]
[1746470175955,3.732,1826.0,1825.9,1.49500249]
[1746470176654,4.82745,1826.0,1825.9,1.09551]
[1746470178959,3.732,1826.0,1825.9,1.09551]
[1746470179565,3.732,1826.0,1825.9,1.93011]
[1746470179764,4.82745,1826.0,1825.9,1.93011]
[1746470180061,3.732,1826.0,1825.9,1.93011]
[1746470181060,4.82745,1826.0,1825.9,1.93011]
[1746470181265,3.732,1826.0,1825.9,1.93011]
[1746470181564,4.82745,1826.0,1825.9,1.93011]
[1746470182266,4.82745,1826.0,1825.9,3.62091]
[1746470182460,4.82745,1826.0,1825.9,4.02062259]
[1746470182765,4.82745,1826.0,1825.9,3.62091]
[1746470183962,4.82745,1826.0,1825.9,4.02076316]
[1746470185256,4.82745,1826.0,1825.9,3.62091]
[1746470185866,4.82745,1826.0,1825.9,2.78631]
[1746470186061,5.63585,1826.0,1825.9,1.6908]
[1746470186365,7.34035,1826.0,1825.9,1.6908]
[1746470187166,7.34035,1826.0,1825.9,2.09089454]
[1746470187361,7.34035,1826.0,1825.9,1.6908]
[1746470187561,7.34035,1826.0,1825.9,2.09114487]
[1746470188269,7.34035,1826.0,1825.9,0.40034487]
[1746470188564,1.09563,1825.7,1825.6,8.62027]
[1746470188764,1.09563,1825.7,1825.6,4.70419901]
[1746470188967,1.09563,1825.7,1825.6,1.49639834]
[1746470189166,3.732,1825.7,1825.6,1.49640593]
[1746470189366,3.732,1825.7,1825.6,1.49683616]
[1746470189667,4.82763,1825.7,1825.6,1.49682557]
[1746470189966,3.732,1825.7,1825.6,1.49682557]
[1746470190159,4.82763,1825.7,1825.6,1.49682557]
[1746470191162,4.82763,1825.7,1825.6,1.49667409]
[1746470192363,1.09575,1825.5,1825.4,2.663]
[1746470192561,4.30355,1825.5,1825.4,3.06416541]
[1746470192766,4.30355,1825.5,1825.4,2.663]
[1746470192966,6.70655,1825.5,1825.4,2.663]
[1746470193169,10.43855,1825.5,1825.4,2.663]
[1746470193770,10.43855,1825.5,1825.4,3.75881]
[1746470193976,4.5501,1825.5,1825.4,3.75881]
[1746470194271,4.82775,1825.5,1825.4,3.75881]
[1746470194970,3.732,1825.5,1825.4,3.75881]
[1746470195573,4.82775,1825.5,1825.4,3.75881]
[1746470195767,3.732,1825.5,1825.4,3.75881]
[1746470195964,3.732,1825.5,1825.4,1.09581]
[1746470196469,4.82775,1825.5,1825.4,1.09581]
[1746470197473,4.82775,1825.5,1825.2,8.6106]
[1746470197474,1.09584,1825.4,1825.3,1.09581]
[1746470197972,3.33099591,1825.5,1825.4,1.09581]
[1746470198171,1.09567,1825.7,1825.6,1.09569]
[1746470198373,3.55727,1825.7,1825.6,1.09569]
[1746470199277,7.28927,1825.7,1825.6,1.09569]
[1746470199464,1.09571,1825.6,1825.5,1.0957]
[1746470199865,2.68491,1825.6,1825.5,1.0957]
[1746470200169,6.41691,1825.6,1825.5,1.0957]
[1746470200375,6.41691,1825.6,1825.3,5.40255]
[1746470200376,5.3212,1825.6,1825.3,2.663]
[1746470200674,1.09581,1825.4,1825.3,1.09584]
[1746470201177,5.68121,1825.4,1825.3,1.09584]
[1746470201669,4.5854,1825.4,1825.3,1.09584]
[1746470202465,5.68121,1825.4,1825.3,1.09584]
[1746470202871,5.68121,1825.4,1825.3,2.66104]
[1746470204078,3.732,1825.4,1825.3,2.66104]
[1746470205181,3.732,1825.4,1825.3,5.86884]
[1746470213180,1.09563,1825.8,1825.7,1.09563]
[1746470213378,2.80783,1825.8,1825.7,1.09563]
[1746470214181,1.09563,1825.7,1825.6,2.70864]
[1746470214381,2.77813,1825.7,1825.6,2.70864]
[1746470214582,2.77813,1825.7,1825.6,1.613]
[1746470214783,2.77813,1825.7,1825.6,2.70869]
[1746470215284,6.51013,1825.7,1825.6,2.70869]
[1746470215689,3.732,1825.7,1825.6,2.70869]
[1746470215988,4.82763,1825.7,1825.6,2.70869]
[1746470216186,3.732,1825.7,1825.6,2.70869]
[1746470218981,3.2078,1826.6,1825.7,2.73908]
[1746470219289,1.09521,1826.4,1826.3,4.30306]
[1746470219682,2.69561,1826.4,1826.3,4.30306]
[1746470220091,1.09527,1826.3,1826.2,4.30309]
[1746470220690,2.80667,1826.3,1826.2,4.30309]
[1746470220891,1.7114,1826.3,1826.2,4.30309]
[1746470221200,5.4434,1826.3,1826.2,4.30309]
[1746470221597,3.732,1826.3,1826.2,4.30309]
[1746470222303,3.732,1826.3,1826.2,8.04209]
[1746470222496,5.47259,1827.6,1826.2,8.04209]
[1746470222497,3.739,1827.4,1826.4,2.73801]
[1746470222702,1.09509,1826.6,1826.5,1.09511]
[1746470222905,1.09506,1826.7,1826.6,1.09507]
[1746470223198,3.732,1826.6,1826.5,1.09515]
[1746470223404,8.00429,1826.6,1826.5,4.7656]
[1746470223593,3.732,1826.6,1826.5,5.86075]
[1746470227007,2.61679,1826.6,1826.5,8.52375]
[1746470227212,3.2078,1827.1,1826.8,2.73732]
[1746470227213,1.09481,1827.1,1826.8,2.73732]
[1746470227394,1.09488,1827.0,1826.9,1.09486]
[1746470227704,2.72239,1827.1,1827.0,1.09485]
[1746470228297,3.732,1827.1,1827.0,4.30265]
[1746470228905,3.732,1827.1,1827.0,7.76775]
[1746470229105,3.732,1827.1,1827.0,9.36685]
[1746470229899,3.732,1827.1,1827.0,14.36685]
[1746470230901,4.82679,1827.1,1827.0,9.36685]
[1746470231101,4.82679,1827.1,1827.0,7.4699]
[1746470231304,4.82679,1827.1,1827.0,2.663]
[1746470232003,1.09485,1827.0,1826.9,1.5991]
[1746470232206,1.09503,1826.7,1826.6,6.9458]
[1746470232397,1.09499,1826.8,1826.6,4.8949]
[1746470232595,1.6714,1826.9,1826.6,4.8949]
[1746470232596,1.09503,1826.7,1826.6,3.2078]
[1746470233005,4.40879,1826.9,1826.5,11.0154142]
[1746470233006,2.76635,1826.9,1826.8,1.09497]
[1746470233212,1.09497,1826.8,1826.7,3.2078]
[1746470233509,1.09497,1826.8,1826.7,1.6871]
[1746470233705,2.81597,1826.8,1826.7,1.6871]
[1746470233909,2.81597,1826.8,1826.7,2.78213]
[1746470234105,2.31050891,1826.9,1826.8,1.09497]
[1746470234409,1.09491,1826.9,1826.8,2.78202]
[1746470234711,1.09491,1826.9,1826.8,1.6871]
[1746470235209,4.82691,1826.9,1826.8,1.6871]
[1746470236005,3.732,1826.9,1826.8,1.09497]
[1746470236208,3.732,1826.9,1826.8,3.57997]
[1746470236905,3.732,1826.9,1826.8,14.98097]
[1746470237103,1.28299,1826.9,1826.8,14.98097]
[1746470237411,2.76619,1827.5,1827.4,1.09461]
[1746470237710,1.09455,1827.6,1827.5,1.09453]
[1746470238106,1.09455,1827.5,1827.4,4.30237]
[1746470238408,1.09455,1827.5,1827.4,1.09457]
[1746470238611,1.09461,1827.4,1827.3,1.6685]
[1746470238814,1.09461,1827.4,1827.3,2.76317]
[1746470239107,3.732,1827.6,1827.5,1.09455]
[1746470239406,1.09447,1827.7,1827.6,1.09446]
[1746470239407,1.09446,1827.7,1827.6,1.09446]
[1746470239711,1.09442,1827.8,1827.7,1.09441]
[1746470239911,1.09442,1827.8,1827.7,2.76251]
[1746470240113,4.82642,1827.8,1827.7,2.76251]
[1746470240506,3.732,1827.8,1827.7,2.76251]
[1746470241608,3.2078,1828.3,1827.8,2.73588]
[1746470241807,1.09409,1828.3,1828.0,3.2078]
[1746470242010,1.09409,1828.3,1828.2,1.09413]
[1746470242211,4.82607,1828.3,1828.2,4.30193]
[1746470242411,3.732,1828.3,1828.2,4.30193]
[1746470242611,4.82607,1828.3,1828.2,4.30193]
[1746470242813,4.82607,1828.3,1828.2,3.2078]
[1746470243016,9.82607,1828.3,1828.2,3.2078]
[1746470243215,5.47068,1828.2,1827.6,3.2078]
[1746470243513,1.09443,1827.7,1827.6,4.30226]
[1746470243815,4.30221,1827.8,1827.6,1.09445]
[1746470244010,5.94376,1827.8,1827.4,3.869]
[1746470244314,3.2078,1827.6,1827.4,4.96359]
[1746470244517,1.6603,1827.5,1827.4,4.96359]
[1746470244811,1.09453,1827.6,1827.4,3.869]
[1746470245012,1.09453,1827.6,1827.4,4.96357]
[1746470245013,2.75485,1827.5,1827.4,4.96357]
[1746470245215,2.75485,1827.5,1827.4,4.96361]
[1746470245708,4.5603,1827.6,1827.3,4.8211]
[1746470245916,3.732,1827.6,1827.5,1.09455]
[1746470247316,2.17,1827.6,1827.5,11.96535]
[1746470247608,2.17,1827.6,1827.5,13.65925]
[1746470247815,0.07,1827.6,1827.5,15.35455]
[1746470248617,0.8241,1828.3,1828.2,1.09413]
[1746470248812,0.8241,1828.3,1828.1,1.09415]
[1746470249114,1.09425,1828.0,1827.9,8.2273]
[1746470249305,3.2078,1828.2,1827.9,8.2273]
[1746470249306,1.7142,1828.2,1827.9,8.2273]
[1746470249508,1.09422,1828.1,1827.9,8.2273]
[1746470249711,1.7142,1828.0,1827.9,9.3216]
[1746470249906,2.541,1828.0,1827.9,9.3216]
[1746470250109,6.273,1828.0,1827.9,9.3216]
[1746470250315,3.732,1828.0,1827.9,9.3216]
[1746470250517,3.732,1828.0,1827.9,14.3216]
[1746470250712,3.732,1828.0,1827.9,9.3216]
[1746470251712,3.732,1828.0,1827.9,9.31455672]
[1746470254920,2.19096,1828.0,1827.9,9.31455672]
[1746470255213,1.676,1828.7,1828.6,1.09389]
[1746470255421,3.2078,1829.1,1828.6,5.94252]
[1746470255612,4.30142,1829.1,1828.7,1.7137]
[1746470255808,1.5651,1829.0,1828.9,1.09371]
[1746470256214,3.732,1829.0,1828.9,1.09371]
[1746470256416,3.732,1829.0,1828.9,2.69511]
[1746470256621,3.732,1829.0,1828.9,6.56211]
[1746470258223,3.732,1829.0,1828.8,3.2078]
[1746470258418,1.09377,1828.8,1828.7,2.69522]
[1746470258617,1.636,1828.9,1828.7,1.6014]
[1746470258918,3.732,1829.0,1828.9,1.09371]
[1746470259111,1.09365,1829.0,1828.9,3.867]
[1746470259308,1.636,1829.0,1828.9,8.16851]
[1746470259522,1.09358,1829.2,1828.9,7.0748]
[1746470259721,2.72939,1829.1,1829.0,2.703]
[1746470260022,1.09365,1829.0,1828.9,3.867]
[1746470260316,4.82565,1829.0,1828.9,4.96071]
[1746470260523,6.46145,1829.0,1828.9,3.867]
[1746470260715,1.09377,1828.8,1828.7,2.7032]
[1746470261022,1.09383,1828.8,1828.7,1.09383]
[1746470261314,3.732,1828.8,1828.7,4.30163]
[1746470261521,3.732,1828.8,1828.7,5.91103]
[1746470261817,3.732,1828.8,1828.7,2.70323]
[1746470262020,6.1572,1828.8,1828.5,5.4764]
[1746470262221,3.732,1828.8,1828.7,1.09383]
[1746470262416,3.732,1828.8,1828.7,4.30163]
[1746470262820,3.732,1828.8,1828.7,6.00233]
[1746470263823,3.732,1828.8,1828.7,11.00233]
[1746470264226,3.732,1828.8,1828.7,6.00233]
[1746470265629,3.732,1828.8,1828.5,3.867]
[1746470265829,4.30169,1828.6,1828.5,3.867]
[1746470266124,1.09407,1828.3,1828.2,3.866]
[1746470266326,1.09413,1828.2,1828.1,1.09417]
[1746470266633,1.09412,1828.3,1828.2,1.09412]
[1746470266930,2.67452,1828.3,1828.2,1.09412]
[1746470267128,5.3124,1828.3,1828.2,1.09412]
[1746470267426,5.3124,1828.3,1828.2,4.30192]
[1746470267623,5.3124,1828.3,1828.2,1.09412]
[1746470269125,7.27002,1828.3,1828.2,1.09413]
[1746470269330,7.27003,1828.3,1828.2,1.09413]
[1746470269530,10.47783,1828.3,1828.2,1.09413]
[1746470269837,6.1759,1828.3,1828.2,1.09413]
[1746470270429,7.26997,1828.3,1828.2,1.09413]
[1746470270617,1.09413,1828.2,1828.1,1.09414]
[1746470270821,9.3837,1828.3,1828.2,1.09413]
[1746470270822,4.5955,1828.3,1828.2,1.09413]
[1746470271629,6.2156,1828.3,1827.9,7.0738]
[1746470271826,5.15885,1828.2,1828.1,1.09417]
[1746470272028,2.477,1828.2,1828.1,1.09417]
[1746470272227,6.209,1828.2,1828.1,3.75717]
[1746470274530,7.30313,1828.2,1828.1,2.663]
[1746470274827,7.30313,1828.2,1828.1,3.75719]
[1746470275027,6.209,1828.2,1828.1,3.75719]
[1746470276335,7.30313,1828.2,1828.1,3.75719]
[1746470276933,6.209,1828.2,1828.1,1.09419]
[1746470277830,6.209,1828.2,1827.9,3.2078]
[1746470278137,1.629,1828.1,1828.0,1.09425]
[1746470279036,4.5889,1828.2,1828.1,1.09419]
[1746470279226,0.8569,1828.2,1828.1,1.09419]
[1746470279526,2.4859,1828.2,1828.1,1.09419]
[1746470280131,6.2179,1828.2,1828.1,1.09419]
[1746470280531,6.2179,1828.2,1828.1,2.67309]
[1746470282634,7.31203,1828.2,1828.1,2.67309]
[1746470282835,1.09425,1828.1,1828.0,1.09422]
[1746470283034,1.09431,1828.0,1827.9,1.09427]
[1746470283332,8.6474,1828.1,1828.0,1.09425]
[1746470283532,5.4396,1828.1,1828.0,1.09425]
[1746470285033,3.732,1828.1,1828.0,4.30205]
[1746470285231,3.732,1828.1,1828.0,5.99245]
[1746470285731,3.732,1828.1,1828.0,1.09425]
[1746470286333,3.732,1828.1,1828.0,2.71925]
[1746470286529,3.732,1828.1,1828.0,5.92705]
[1746470287038,2.56213,1828.1,1828.0,10.22745]
[1746470287344,3.3541,1828.6,1828.5,1.09395]
[1746470288239,7.0861,1828.6,1828.5,1.09395]
[1746470288438,8.17999,1828.6,1828.5,1.09395]
[1746470288740,1.09395,1828.5,1828.4,1.09397]
[1746470289044,1.09407,1828.3,1828.2,1.09411]
[1746470289640,1.09418,1828.2,1828.1,1.09414]
[1746470289834,1.09425,1828.1,1828.0,1.0942]
[1746470290140,1.09399,1828.5,1828.4,1.09401]
[1746470290540,1.09409,1828.4,1828.3,1.09404]
[1746470290744,4.30189,1828.4,1828.3,1.09404]
[1746470291143,8.03389,1828.4,1828.3,1.09404]
[1746470291536,7.22539,1828.4,1828.3,1.09404]
[1746470292338,7.22539,1828.4,1827.9,7.55897]
[1746470292339,6.1313,1828.4,1827.9,7.55897]